[Event "Velammal AICF Women GM 2024"]
[Site "Chennai"]
[Date "2024.03.23"]
[Round "9.3"]
[White "Franco Valencia, Angela"]
[Black "Chitlange Sakshi"]
[Result "1/2-1/2"]
[ECO "C01"]
[WhiteElo "2095"]
[BlackElo "2175"]
[Annotator "RC"]
[PlyCount "94"]
[EventDate "2024.03.18"]
[EventType "tourn"]
[EventCountry "IND"]
[SourceTitle "playchess.com"]
[Source "ChessBase"]
[SourceQuality "1"]
[TimeControl "5400+30"]

1. e4 {[%emt 0:03:16]} e6 {[%emt 0:00:06]} 2. d4 {[%emt 0:00:25]} d5 {[%emt 0:00:02]} 3. exd5 {[%emt 0:00:38]} exd5 {[%emt 0:00:08]} 4. Nf3 {[%emt 0:00:14]} Nf6 {[%emt 0:02:02]} 5. Bd3 {[%emt 0:00:28]} Bd6 {[%emt 0:00:48]} 6. O-O {[%emt 0:01:24]} O-O {[%emt 0:00:06]} 7. Bg5 {[%emt 0:00:37]} Bg4 {[%emt 0:02:34]} 8. h3 {[%emt 0:00:12]} Bh5 {[%emt 0:02:25]} 9. g4 {[%emt 0:04:26]} Bg6 {[%emt 0:00:17]} 10. Nc3 {[%emt 0:00:37]} c6 {[%emt 0:02:29]} 11. Ne5 {[%emt 0:02:26]} Bxd3 {[%emt 0:05:21]} 12. Qxd3 {[%emt 0:00:23]} Be7 {[%emt 0:02:34]} 13. Rfe1 {[%emt 0:05:01]} Nbd7 {[%emt 0:05:32]} 14. Re2 {[%emt 0:06:15]} Nxe5 {[%emt 0:14:21]} 15. dxe5 {[%emt 0:00:57]} Nd7 {[%emt 0:01:09]} 16. Bxe7 {[%emt 0:01:27]} Qxe7 {[%emt 0:00:01]} 17. Rae1 {[%emt 0:00:13]} Nc5 {[%emt 0:04:03]} 18. Qg3 {[%emt 0:01:12]} Rad8 {[%emt 0:02:26]} 19. Rd1 {[%emt 0:03:25]} b5 {[%emt 0:06:27]} 20. b4 {[%emt 0:08:52]} Ne6 {[%emt 0:04:10]} 21. a3 {[%emt 0:06:28]} a5 {[%emt 0:01:35]} 22. Rb1 {[%emt 0:08:14]} axb4 {[%emt 0:00:35]} 23. axb4 {[%emt 0:00:09]} Ra8 {[%emt 0:03:28]} 24. Kh2 {[%emt 0:04:48]} Qg5 {[%emt 0:13:07]} 25. Ree1 {[%emt 0:05:22]} Ra3 {[%emt 0:04:20]} 26. Re3 {[%emt 0:03:37]} d4 {[%emt 0:08:28]} 27. Ne4 {[%emt 0:00:28]} Rxe3 {[%emt 0:00:05]} 28. fxe3 {[%emt 0:03:59]} Qg6 {[%emt 0:00:54]} 29. Qg2 {[%emt 0:01:03]} dxe3 {[%emt 0:03:44]} 30. Nd6 {[%emt 0:01:03]} Nd4 {[%emt 0:01:53]} 31. Re1 {[%emt 0:01:11]} Qxc2 {[%emt 0:05:27]} 32. Rxe3 {[%emt 0:00:14]} Ra8 {[%emt 0:01:51]} 33. Re4 {[%emt 0:06:18]} Ra2 {[%emt 0:02:54]} 34. Qxc2 {[%emt 0:00:38]} Rxc2+ {[%emt 0:00:40]} 35. Kg3 {[%emt 0:00:26]} Ne6 {[%emt 0:00:39]} 36. Re3 {[%emt 0:00:56]} Ra2 {[%emt 0:00:43]} 37. Rf3 {[%emt 0:02:30]} Ra7 {[%emt 0:00:24]} 38. Rc3 {[%emt 0:00:46]} Ra6 {[%emt 0:00:36]} 39. Rf3 {[%emt 0:03:13]} Nd8 {[%emt 0:00:29]} 40. Rd3 {[%emt 0:00:30]} Ra8 {[%emt 0:00:20]} 41. Ne4 {[%emt 0:00:45]} Kf8 {[%emt 0:00:28]} 42. Rd7 {[%emt 0:00:30]} Ke8 {[%emt 0:00:42]} 43. Rc7 {[%emt 0:00:07]} Ra3+ {[%emt 0:00:15]} 44. Kg2 {[%emt 0:00:18]} Ra2+ {[%emt 0:00:05]} 45. Kg3 {[%emt 0:00:18]} Ra3+ {[%emt 0:01:16]} 46. Kg2 {[%emt 0:00:07]} Ra2+ {[%emt 0:00:33]} 47. Kg3 {[%emt 0:00:05]} Ra3+ {[%emt 0:00:48]} 1/2-1/2

[Event "Velammal AICF Women GM 2024"]
[Site "Chennai"]
[Date "2024.03.23"]
[Round "9.4"]
[White "Monnisha G K"]
[Black "Mahalakshmi, M."]
[Result "1/2-1/2"]
[ECO "B13"]
[WhiteElo "2202"]
[BlackElo "2242"]
[Annotator "RC"]
[PlyCount "62"]
[EventDate "2024.03.18"]
[EventType "tourn"]
[EventCountry "IND"]
[SourceTitle "playchess.com"]
[Source "ChessBase"]
[SourceQuality "1"]
[TimeControl "5400+30"]

1. e4 {[%emt 0:00:04]} c6 {[%emt 0:00:01]} 2. d4 {[%emt 0:00:05]} d5 {[%emt 0:00:03]} 3. exd5 {[%emt 0:00:05]} cxd5 {[%emt 0:00:04]} 4. c4 {[%emt 0:00:09]} Nf6 {[%emt 0:00:02]} 5. Nc3 {[%emt 0:00:05]} Nc6 {[%emt 0:00:03]} 6. Nf3 {[%emt 0:00:05]} Bg4 {[%emt 0:00:07]} 7. cxd5 {[%emt 0:00:04]} Nxd5 {[%emt 0:00:03]} 8. Qb3 {[%emt 0:00:08]} Bxf3 {[%emt 0:00:08]} 9. gxf3 {[%emt 0:00:05]} e6 {[%emt 0:00:07]} 10. Qxb7 {[%emt 0:00:07]} Nxd4 {[%emt 0:00:05]} 11. Bb5+ {[%emt 0:00:05]} Nxb5 {[%emt 0:00:04]} 12. Qc6+ {[%emt 0:00:05]} Ke7 {[%emt 0:00:06]} 13. Qxb5 {[%emt 0:00:04]} Qd7 {[%emt 0:00:04]} 14. Nxd5+ {[%emt 0:00:05]} Qxd5 {[%emt 0:00:33]} 15. Qxd5 {[%emt 0:00:05]} exd5 {[%emt 0:00:02]} 16. Be3 {[%emt 0:00:10]} Ke6 {[%emt 0:00:02]} 17. O-O-O {[%emt 0:00:08]} Bb4 {[%emt 0:00:09]} 18. a3 {[%emt 0:00:04]} Rhc8+ {[%emt 0:00:35]} 19. Kb1 {[%emt 0:00:06]} Bc5 {[%emt 0:00:10]} 20. Rhe1 {[%emt 0:00:04]} Bxe3 {[%emt 0:00:11]} 21. Rxe3+ {[%emt 0:00:05]} Kd6 {[%emt 0:00:04]} 22. Red3 {[%emt 0:00:06]} Rc5 {[%emt 0:00:11]} 23. b4 {[%emt 0:00:05]} Rb5 {[%emt 0:00:09]} 24. Kb2 {[%emt 0:00:04]} Re8 {[%emt 0:00:25]} 25. R1d2 {[%emt 0:00:31]} Re5 {[%emt 0:01:15]} 26. Rd4 {[%emt 0:00:23]} Re7 {[%emt 0:02:13]} 27. R4d3 {[%emt 0:00:32]} Re5 {[%emt 0:00:03]} 28. Rd1 {[%emt 0:00:14]} Rf5 {[%emt 0:00:03]} 29. Rc1 {[%emt 0:00:39]} Re5 {[%emt 0:00:20]} 30. Rcd1 {[%emt 0:00:05]} Rf5 {[%emt 0:00:03]} 31. Rc1 {[%emt 0:00:18]} Ke5 {[%emt 0:00:11]} 1/2-1/2

[Event "Velammal AICF Women GM 2024"]
[Site "Chennai"]
[Date "2024.03.23"]
[Round "9.5"]
[White "Enkhtuul, Altan-Ulzii"]
[Black "Velpula Sarayu"]
[Result "1/2-1/2"]
[ECO "E65"]
[WhiteElo "2195"]
[BlackElo "2389"]
[Annotator "RC"]
[PlyCount "76"]
[EventDate "2024.03.18"]
[EventType "tourn"]
[EventCountry "IND"]
[SourceTitle "playchess.com"]
[Source "ChessBase"]
[SourceQuality "1"]
[TimeControl "5400+30"]

1. d4 {[%emt 0:00:04]} Nf6 {[%emt 0:00:26]} 2. c4 {[%emt 0:00:09]} g6 {[%emt 0:00:29]} 3. Nc3 {[%emt 0:00:11]} Bg7 {[%emt 0:00:28]} 4. g3 {[%emt 0:00:08]} O-O {[%emt 0:00:33]} 5. Bg2 {[%emt 0:00:04]} d6 {[%emt 0:00:27]} 6. Nf3 {[%emt 0:00:04]} c5 {[%emt 0:00:33]} 7. O-O {[%emt 0:00:09]} Nc6 {[%emt 0:00:27]} 8. e3 {[%emt 0:01:31]} Bg4 {[%emt 0:05:06]} 9. h3 {[%emt 0:28:59]} Bxf3 {[%emt 0:00:55]} 10. Bxf3 {[%emt 0:00:08]} Nd7 {[%emt 0:00:51]} 11. Ne2 {[%emt 0:14:09]} Qb6 {[%emt 0:03:27]} 12. Bxc6 {[%emt 0:04:22]} bxc6 {[%emt 0:02:43]} 13. b3 {[%emt 0:02:28]} d5 {[%emt 0:16:55]} 14. Bb2 {[%emt 0:00:58]} Qa6 {[%emt 0:05:22]} 15. Qc2 {[%emt 0:13:36]} cxd4 {[%emt 0:01:06]} 16. exd4 {[%emt 0:00:23]} dxc4 {[%emt 0:01:44]} 17. Qxc4 {[%emt 0:17:21]} Qxc4 {[%emt 0:00:37]} 18. bxc4 {[%emt 0:00:03]} c5 {[%emt 0:00:45]} 19. Rad1 {[%emt 0:02:59]} Rfc8 {[%emt 0:05:20]} 20. dxc5 {[%emt 0:02:33]} Nxc5 {[%emt 0:00:17]} 21. Bxg7 {[%emt 0:00:18]} Kxg7 {[%emt 0:00:02]} 22. Nc3 {[%emt 0:00:11]} Ne6 {[%emt 0:05:16]} 23. Nd5 {[%emt 0:00:57]} Kf8 {[%emt 0:00:50]} 24. Ne3 {[%emt 0:00:38]} Rc6 {[%emt 0:08:48]} 25. Rd7 {[%emt 0:02:22]} Ra6 {[%emt 0:01:59]} 26. Rd2 {[%emt 0:03:39]} Rc8 {[%emt 0:01:04]} 27. Rb1 {[%emt 0:01:19]} Nc5 {[%emt 0:00:41]} 28. Rb5 {[%emt 0:01:12]} e6 {[%emt 0:11:26]} 29. Rdb2 {[%emt 0:01:25]} Ke7 {[%emt 0:01:00]} 30. h4 {[%emt 0:00:27]} h5 {[%emt 0:01:04]} 31. Re2 {[%emt 0:00:19]} Ra3 {[%emt 0:02:15]} 32. Rc2 {[%emt 0:00:41]} Rc7 {[%emt 0:03:25]} 33. Re2 {[%emt 0:01:06]} Kf6 {[%emt 0:00:15]} 34. Rc2 {[%emt 0:01:01]} Rc6 {[%emt 0:03:34]} 35. Kf1 {[%emt 0:00:59]} a6 {[%emt 0:05:32]} 36. Rb1 {[%emt 0:00:14]} Ne4 {[%emt 0:00:17]} 37. Kg2 {[%emt 0:00:16]} Ra5 {[%emt 0:01:25]} 38. Rb7 {[%emt 0:00:55]} Rac5 {[%emt 0:02:18]} 1/2-1/2

[Event "Velammal AICF Women GM 2024"]
[Site "Chennai"]
[Date "2024.03.24"]
[Round "10.2"]
[White "Velpula Sarayu"]
[Black "Uuriintuya, Uurtsaikh"]
[Result "1/2-1/2"]
[ECO "B38"]
[WhiteElo "2389"]
[BlackElo "2288"]
[Annotator "RC"]
[PlyCount "82"]
[EventDate "2024.03.18"]
[EventType "tourn"]
[EventCountry "IND"]
[SourceTitle "playchess.com"]
[Source "ChessBase"]
[SourceQuality "1"]
[TimeControl "5400+30"]

1. e4 {[%emt 0:00:25]} c5 {[%emt 0:02:25]} 2. Nf3 {[%emt 0:00:29]} Nc6 {[%emt 0:00:10]} 3. d4 {[%emt 0:00:32]} cxd4 {[%emt 0:00:05]} 4. Nxd4 {[%emt 0:00:31]} g6 {[%emt 0:00:07]} 5. c4 {[%emt 0:00:29]} Bg7 {[%emt 0:00:13]} 6. Be3 {[%emt 0:00:33]} Nf6 {[%emt 0:00:24]} 7. Nc3 {[%emt 0:00:27]} d6 {[%emt 0:00:08]} 8. Be2 {[%emt 0:00:33]} O-O {[%emt 0:00:38]} 9. O-O {[%emt 0:00:27]} Bd7 {[%emt 0:00:20]} 10. h3 {[%emt 0:00:32]} Nxd4 {[%emt 0:00:48]} 11. Bxd4 {[%emt 0:00:27]} Bc6 {[%emt 0:00:04]} 12. Qc2 {[%emt 0:06:31]} a5 {[%emt 0:02:04]} 13. b3 {[%emt 0:00:25]} Nd7 {[%emt 0:00:40]} 14. Bxg7 {[%emt 0:00:18]} Kxg7 {[%emt 0:00:03]} 15. a3 {[%emt 0:00:19]} Qb6 {[%emt 0:02:17]} 16. Rab1 {[%emt 0:00:14]} Qd4 {[%emt 0:01:20]} 17. Rbd1 {[%emt 0:11:27]} Qe5 {[%emt 0:00:45]} 18. Kh1 {[%emt 0:01:52]} Nc5 {[%emt 0:07:08]} 19. Bd3 {[%emt 0:06:34]} Ne6 {[%emt 0:06:23]} 20. Ne2 {[%emt 0:01:58]} Nd4 {[%emt 0:02:09]} 21. Nxd4 {[%emt 0:03:50]} Qxd4 {[%emt 0:00:04]} 22. f4 {[%emt 0:00:23]} Rfc8 {[%emt 0:10:43]} 23. Qe2 {[%emt 0:06:57]} Qc3 {[%emt 0:03:50]} 24. Rb1 {[%emt 0:05:48]} Bd7 {[%emt 0:07:37]} 25. Qe3 {[%emt 0:06:29]} Kg8 {[%emt 0:05:10]} 26. Rfc1 {[%emt 0:03:15]} Qf6 {[%emt 0:01:55]} 27. Be2 {[%emt 0:02:13]} Rc7 {[%emt 0:05:52]} 28. Rf1 {[%emt 0:07:56]} a4 {[%emt 0:06:46]} 29. b4 {[%emt 0:02:14]} Rac8 {[%emt 0:10:02]} 30. Rbc1 {[%emt 0:04:23]} Qb2 {[%emt 0:02:33]} 31. e5 {[%emt 0:07:00]} dxe5 {[%emt 0:04:57]} 32. fxe5 {[%emt 0:01:07]} Be6 {[%emt 0:00:02]} 33. Rcd1 {[%emt 0:06:35]} Bxc4 {[%emt 0:01:48]} 34. Bxc4 {[%emt 0:00:35]} Rxc4 {[%emt 0:00:02]} 35. Qf3 {[%emt 0:00:23]} Qxe5 {[%emt 0:04:31]} 36. Qxf7+ {[%emt 0:00:30]} Kh8 {[%emt 0:00:01]} 37. Rde1 {[%emt 0:03:53]} Re4 {[%emt 0:00:51]} 38. Rc1 {[%emt 0:00:06]} Rd8 {[%emt 0:00:52]} 39. Rcd1 {[%emt 0:00:36]} Rc8 {[%emt 0:00:19]} 40. Rc1 {[%emt 0:01:22]} Rd8 {[%emt 0:00:24]} 41. Rcd1 {[%emt 0:04:07]} Rc8 {[%emt 0:01:36]} 1/2-1/2

[Event "Velammal AICF Women GM 2024"]
[Site "Chennai"]
[Date "2024.03.24"]
[Round "10.3"]
[White "Mahalakshmi, M."]
[Black "Enkhtuul, Altan-Ulzii"]
[Result "1/2-1/2"]
[ECO "D02"]
[WhiteElo "2242"]
[BlackElo "2195"]
[Annotator "RC"]
[PlyCount "91"]
[EventDate "2024.03.18"]
[EventType "tourn"]
[EventCountry "IND"]
[SourceTitle "playchess.com"]
[Source "ChessBase"]
[SourceQuality "1"]
[TimeControl "5400+30"]

1. d4 {[%emt 0:00:03]} d5 {[%emt 0:03:16]} 2. Nf3 {[%emt 0:00:07]} c5 {[%emt 0:02:13]} 3. dxc5 {[%emt 0:01:34]} e6 {[%emt 0:00:37]} 4. e4 {[%emt 0:03:01]} Bxc5 {[%emt 0:05:55]} 5. exd5 {[%emt 0:02:02]} exd5 {[%emt 0:03:03]} 6. Bb5+ {[%emt 0:06:41]} Nc6 {[%emt 0:00:45]} 7. O-O {[%emt 0:04:16]} Nge7 {[%emt 0:00:15]} 8. Nbd2 {[%emt 0:05:39]} O-O {[%emt 0:00:37]} 9. Nb3 {[%emt 0:00:20]} Bb6 {[%emt 0:03:03]} 10. Bf4 {[%emt 0:03:32]} Ng6 {[%emt 0:02:21]} 11. Bg3 {[%emt 0:02:52]} a6 {[%emt 0:11:52]} 12. Bxc6 {[%emt 0:04:05]} bxc6 {[%emt 0:00:07]} 13. Ne5 {[%emt 0:01:14]} Qf6 {[%emt 0:06:16]} 14. Nxg6 {[%emt 0:06:08]} fxg6 {[%emt 0:01:01]} 15. c3 {[%emt 0:01:33]} Ra7 {[%emt 0:16:42]} 16. Kh1 {[%emt 0:03:25]} Raf7 {[%emt 0:03:38]} 17. Qd2 {[%emt 0:08:41]} g5 {[%emt 0:05:35]} 18. Nd4 {[%emt 0:03:18]} g4 {[%emt 0:09:01]} 19. Rae1 {[%emt 0:06:15]} h5 {[%emt 0:00:07]} 20. Be5 {[%emt 0:02:04]} Qg6 {[%emt 0:00:10]} 21. f4 {[%emt 0:03:29]} c5 {[%emt 0:01:30]} 22. Nc2 {[%emt 0:04:12]} h4 {[%emt 0:02:34]} 23. b4 {[%emt 0:08:09]} h3 {[%emt 0:01:39]} 24. bxc5 {[%emt 0:01:27]} Bxc5 {[%emt 0:01:23]} 25. Nd4 {[%emt 0:01:04]} hxg2+ {[%emt 0:06:45]} 26. Qxg2 {[%emt 0:01:36]} Rd8 {[%emt 0:03:44]} 27. Re3 {[%emt 0:08:02]} Bxd4 {[%emt 0:00:19]} 28. Bxd4 {[%emt 0:01:41]} Bf5 {[%emt 0:00:16]} 29. Kg1 {[%emt 0:00:07]} Bd3 {[%emt 0:01:55]} 30. Rf2 {[%emt 0:02:54]} Rb7 {[%emt 0:01:47]} 31. Rb2 {[%emt 0:01:22]} Rxb2 {[%emt 0:02:59]} 32. Qxb2 {[%emt 0:00:06]} Re8 {[%emt 0:00:46]} 33. Qb7 {[%emt 0:02:45]} Rxe3 {[%emt 0:00:11]} 34. Bxe3 {[%emt 0:00:24]} Bc4 {[%emt 0:03:58]} 35. Bd4 {[%emt 0:02:18]} Kh7 {[%emt 0:00:41]} 36. a4 {[%emt 0:00:57]} g3 {[%emt 0:00:21]} 37. Qb2 {[%emt 0:00:58]} Qd3 {[%emt 0:00:54]} 38. hxg3 {[%emt 0:00:28]} Qxg3+ {[%emt 0:00:36]} 39. Qg2 {[%emt 0:00:18]} Qe1+ {[%emt 0:00:28]} 40. Kh2 {[%emt 0:00:03]} Qe7 {[%emt 0:00:33]} 41. Qh3+ {[%emt 0:00:23]} Kg8 {[%emt 0:00:03]} 42. Qc8+ {[%emt 0:00:13]} Kf7 {[%emt 0:00:22]} 43. Qf5+ {[%emt 0:00:16]} Kg8 {[%emt 0:00:03]} 44. Qc8+ {[%emt 0:00:13]} Kh7 {[%emt 0:00:30]} 45. Qf5+ {[%emt 0:00:41]} Kg8 {[%emt 0:00:11]} 46. Qc8+ {[%emt 0:00:24]} 1/2-1/2

[Event "Velammal AICF Women GM 2024"]
[Site "Chennai"]
[Date "2024.03.24"]
[Round "10.4"]
[White "Chitlange Sakshi"]
[Black "Monnisha G K"]
[Result "1/2-1/2"]
[ECO "A47"]
[WhiteElo "2175"]
[BlackElo "2202"]
[Annotator "RC"]
[PlyCount "61"]
[EventDate "2024.03.18"]
[EventType "tourn"]
[EventCountry "IND"]
[SourceTitle "playchess.com"]
[Source "ChessBase"]
[SourceQuality "1"]
[TimeControl "5400+30"]

1. d4 {[%emt 0:00:12]} Nf6 {[%emt 0:00:18]} 2. Bf4 {[%emt 0:00:06]} e6 {[%emt 0:00:15]} 3. e3 {[%emt 0:00:11]} c5 {[%emt 0:00:06]} 4. Nf3 {[%emt 0:00:15]} b6 {[%emt 0:01:01]} 5. Nc3 {[%emt 0:00:25]} Nh5 {[%emt 0:04:30]} 6. Bg5 {[%emt 0:10:33]} Be7 {[%emt 0:00:37]} 7. Bxe7 {[%emt 0:02:03]} Qxe7 {[%emt 0:00:07]} 8. Nb5 {[%emt 0:08:11]} d5 {[%emt 0:01:16]} 9. c4 {[%emt 0:00:50]} a6 {[%emt 0:03:32]} 10. Nc3 {[%emt 0:00:08]} dxc4 {[%emt 0:04:31]} 11. Ne5 {[%emt 0:02:25]} Nf6 {[%emt 0:02:15]} 12. Nxc4 {[%emt 0:01:12]} Nbd7 {[%emt 0:03:45]} 13. dxc5 {[%emt 0:07:26]} Qxc5 {[%emt 0:00:55]} 14. Qd6 {[%emt 0:09:38]} Qxd6 {[%emt 0:02:05]} 15. Nxd6+ {[%emt 0:00:02]} Ke7 {[%emt 0:00:11]} 16. Rd1 {[%emt 0:01:27]} Rd8 {[%emt 0:04:41]} 17. Be2 {[%emt 0:03:46]} Nc5 {[%emt 0:02:42]} 18. Nxc8+ {[%emt 0:01:27]} Raxc8 {[%emt 0:04:06]} 19. O-O {[%emt 0:07:15]} b5 {[%emt 0:03:16]} 20. a3 {[%emt 0:04:02]} Nb3 {[%emt 0:02:36]} 21. Rxd8 {[%emt 0:01:43]} Rxd8 {[%emt 0:01:03]} 22. Rd1 {[%emt 0:00:29]} Rxd1+ {[%emt 0:05:13]} 23. Bxd1 {[%emt 0:00:01]} Nc5 {[%emt 0:00:11]} 24. Bc2 {[%emt 0:02:26]} h6 {[%emt 0:04:35]} 25. Kf1 {[%emt 0:02:55]} Ng4 {[%emt 0:09:54]} 26. h3 {[%emt 0:03:03]} Ne5 {[%emt 0:00:14]} 27. b3 {[%emt 0:02:02]} Nc6 {[%emt 0:02:29]} 28. b4 {[%emt 0:02:34]} Nd7 {[%emt 0:00:48]} 29. Be4 {[%emt 0:03:27]} Kd6 {[%emt 0:01:53]} 30. Ke2 {[%emt 0:01:41]} Nde5 {[%emt 0:02:15]} 31. Bxc6 {[%emt 0:04:54]} 1/2-1/2

[Event "Velammal AICF Women GM 2024"]
[Site "Chennai"]
[Date "2024.03.24"]
[Round "10.5"]
[White "Sedina, Elena"]
[Black "Franco Valencia, Angela"]
[Result "1/2-1/2"]
[ECO "C54"]
[WhiteElo "2161"]
[BlackElo "2095"]
[Annotator "RC"]
[PlyCount "97"]
[EventDate "2024.03.18"]
[EventType "tourn"]
[EventCountry "IND"]
[SourceTitle "playchess.com"]
[Source "ChessBase"]
[SourceQuality "1"]
[TimeControl "5400+30"]

1. e4 {[%emt 0:00:04]} e5 {[%emt 0:04:04]} 2. Bc4 {[%emt 0:00:16]} Nc6 {[%emt 0:00:19]} 3. Nf3 {[%emt 0:00:18]} Bc5 {[%emt 0:00:21]} 4. O-O {[%emt 0:00:58]} d6 {[%emt 0:00:29]} 5. c3 {[%emt 0:00:53]} Nf6 {[%emt 0:01:03]} 6. d3 {[%emt 0:00:28]} a6 {[%emt 0:00:23]} 7. a4 {[%emt 0:03:21]} Ba7 {[%emt 0:00:27]} 8. Re1 {[%emt 0:01:44]} O-O {[%emt 0:01:26]} 9. h3 {[%emt 0:01:03]} Be6 {[%emt 0:03:14]} 10. Bxe6 {[%emt 0:15:12]} fxe6 {[%emt 0:00:05]} 11. b4 {[%emt 0:00:04]} Nh5 {[%emt 0:03:32]} 12. Nbd2 {[%emt 0:14:24]} Qf6 {[%emt 0:03:15]} 13. Nf1 {[%emt 0:01:09]} Qg6 {[%emt 0:00:51]} 14. Ra2 {[%emt 0:06:09]} Nf4 {[%emt 0:05:04]} 15. Bxf4 {[%emt 0:00:25]} Rxf4 {[%emt 0:00:09]} 16. b5 {[%emt 0:13:48]} Ne7 {[%emt 0:01:33]} 17. N1h2 {[%emt 0:04:10]} a5 {[%emt 0:06:33]} 18. Qe2 {[%emt 0:05:31]} Raf8 {[%emt 0:01:05]} 19. d4 {[%emt 0:04:07]} exd4 {[%emt 0:05:13]} 20. cxd4 {[%emt 0:00:07]} Bb6 {[%emt 0:04:46]} 21. Kh1 {[%emt 0:06:35]} Kh8 {[%emt 0:07:00]} 22. Rd2 {[%emt 0:02:12]} Qh5 {[%emt 0:04:18]} 23. Kg1 {[%emt 0:11:14]} Qf7 {[%emt 0:08:41]} 24. Rd3 {[%emt 0:01:30]} Ng6 {[%emt 0:04:51]} 25. g3 {[%emt 0:01:43]} h6 {[%emt 0:05:21]} 26. Kh1 {[%emt 0:04:35]} Rf6 {[%emt 0:00:43]} 27. Kg2 {[%emt 0:00:26]} Qe8 {[%emt 0:04:16]} 28. Qd2 {[%emt 0:00:26]} e5 {[%emt 0:00:50]} 29. Ng4 {[%emt 0:01:09]} R6f7 {[%emt 0:00:21]} 30. Re2 {[%emt 0:00:40]} exd4 {[%emt 0:02:10]} 31. e5 {[%emt 0:00:41]} Qe6 {[%emt 0:03:38]} 32. exd6 {[%emt 0:00:32]} Qxd6 {[%emt 0:00:05]} 33. Nxd4 {[%emt 0:00:31]} Qb4 {[%emt 0:03:01]} 34. Ne6 {[%emt 0:00:26]} Qxd2 {[%emt 0:02:09]} 35. Rexd2 {[%emt 0:00:10]} Re8 {[%emt 0:00:30]} 36. Rd8 {[%emt 0:00:53]} Rfe7 {[%emt 0:00:16]} 37. Rxe8+ {[%emt 0:00:20]} Rxe8 {[%emt 0:00:06]} 38. Nd8 {[%emt 0:00:07]} Re4 {[%emt 0:01:22]} 39. Ra2 {[%emt 0:01:01]} h5 {[%emt 0:02:47]} 40. Ne3 {[%emt 0:00:07]} Ne5 {[%emt 0:02:53]} 41. h4 {[%emt 0:00:55]} Bxe3 {[%emt 0:03:55]} 42. fxe3 {[%emt 0:00:02]} b6 {[%emt 0:01:32]} 43. Ne6 {[%emt 0:00:17]} Nc4 {[%emt 0:01:52]} 44. Nxc7 {[%emt 0:00:28]} Rxe3 {[%emt 0:00:34]} 45. Rc2 {[%emt 0:00:53]} Re4 {[%emt 0:00:20]} 46. Nd5 {[%emt 0:00:48]} Rd4 {[%emt 0:00:46]} 47. Kf2 {[%emt 0:00:08]} Kh7 {[%emt 0:01:07]} 48. Nf4 {[%emt 0:00:57]} Ne5 {[%emt 0:02:54]} 49. Ra2 {[%emt 0:00:17]} 1/2-1/2

[Event "Velammal AICF Women GM 2024"]
[Site "Chennai"]
[Date "2024.03.24"]
[Round "10.6"]
[White "Maisuradze, Nino"]
[Black "Gomes, Mary Ann"]
[Result "1/2-1/2"]
[ECO "E32"]
[WhiteElo "2254"]
[BlackElo "2322"]
[Annotator "RC"]
[PlyCount "61"]
[EventDate "2024.03.18"]
[EventType "tourn"]
[EventCountry "IND"]
[SourceTitle "playchess.com"]
[Source "ChessBase"]
[SourceQuality "1"]
[TimeControl "5400+30"]

1. d4 {[%emt 0:00:04]} Nf6 {[%emt 0:00:22]} 2. c4 {[%emt 0:00:06]} e6 {[%emt 0:00:05]} 3. Nc3 {[%emt 0:00:31]} Bb4 {[%emt 0:00:08]} 4. Qc2 {[%emt 0:00:06]} d6 {[%emt 0:00:19]} 5. a3 {[%emt 0:03:30]} Bxc3+ {[%emt 0:00:19]} 6. Qxc3 {[%emt 0:00:01]} Nbd7 {[%emt 0:00:47]} 7. g3 {[%emt 0:01:32]} e5 {[%emt 0:00:29]} 8. Bg2 {[%emt 0:00:22]} exd4 {[%emt 0:03:17]} 9. Qxd4 {[%emt 0:00:04]} Qe7 {[%emt 0:00:06]} 10. b4 {[%emt 0:13:33]} a5 {[%emt 0:02:06]} 11. Bb2 {[%emt 0:22:48]} axb4 {[%emt 0:08:11]} 12. axb4 {[%emt 0:00:02]} Rxa1+ {[%emt 0:00:06]} 13. Bxa1 {[%emt 0:00:01]} c5 {[%emt 0:02:31]} 14. bxc5 {[%emt 0:04:27]} Nxc5 {[%emt 0:00:07]} 15. Bc3 {[%emt 0:15:08]} Bf5 {[%emt 0:05:56]} 16. Nh3 {[%emt 0:00:33]} Nd3+ {[%emt 0:20:01]} 17. Kf1 {[%emt 0:00:07]} Nc5 {[%emt 0:04:56]} 18. Nf4 {[%emt 0:00:14]} Be6 {[%emt 0:08:18]} 19. Bf3 {[%emt 0:02:54]} Nb3 {[%emt 0:04:56]} 20. Qd3 {[%emt 0:04:14]} Nc5 {[%emt 0:00:07]} 21. Qd4 {[%emt 0:04:04]} Nb3 {[%emt 0:00:17]} 22. Qd3 {[%emt 0:05:21]} Nc5 {[%emt 0:00:06]} 23. Bxf6 {[%emt 0:01:19]} Qxf6 {[%emt 0:02:19]} 24. Qc2 {[%emt 0:05:38]} O-O {[%emt 0:14:18]} 25. Kg2 {[%emt 0:00:42]} g5 {[%emt 0:00:31]} 26. Nd5 {[%emt 0:01:01]} Qe5 {[%emt 0:03:29]} 27. Rb1 {[%emt 0:02:40]} Kh8 {[%emt 0:04:15]} 28. Ne3 {[%emt 0:04:22]} f5 {[%emt 0:02:22]} 29. g4 {[%emt 0:03:46]} fxg4 {[%emt 0:02:14]} 30. Nxg4 {[%emt 0:04:03]} Bxg4 {[%emt 0:05:33]} 31. Bxg4 {[%emt 0:00:01]} 1/2-1/2

[Event "Velammal AICF Women GM 2024"]
[Site "Chennai"]
[Date "2024.03.25"]
[Round "11.1"]
[White "Gomes, Mary Ann"]
[Black "Bommini Mounika Akshaya"]
[Result "1-0"]
[ECO "A11"]
[WhiteElo "2322"]
[BlackElo "2134"]
[Annotator "RC"]
[PlyCount "77"]
[EventDate "2024.03.18"]
[EventType "tourn"]
[EventCountry "IND"]
[SourceTitle "playchess.com"]
[Source "ChessBase"]
[SourceQuality "1"]
[TimeControl "5400+30"]

1. Nf3 {[%emt 0:00:22]} d5 {[%emt 0:00:25]} 2. e3 {[%emt 0:00:08]} c6 {[%emt 0:00:19]} 3. c4 {[%emt 0:00:15]} Nf6 {[%emt 0:00:24]} 4. Nc3 {[%emt 0:00:08]} a6 {[%emt 0:00:10]} 5. b3 {[%emt 0:01:15]} Bf5 {[%emt 0:00:20]} 6. Bb2 {[%emt 0:00:36]} e6 {[%emt 0:00:24]} 7. Be2 {[%emt 0:00:21]} h6 {[%emt 0:00:39]} 8. d3 {[%emt 0:01:03]} Nbd7 {[%emt 0:05:31]} 9. Qc2 {[%emt 0:02:18]} Bh7 {[%emt 0:02:44]} 10. a3 {[%emt 0:03:36]} b5 {[%emt 0:07:50]} 11. cxb5 {[%emt 0:03:41]} cxb5 {[%emt 0:00:28]} 12. b4 {[%emt 0:00:10]} Bd6 {[%emt 0:06:22]} 13. O-O {[%emt 0:00:19]} O-O {[%emt 0:01:58]} 14. Qb3 {[%emt 0:04:53]} Qe7 {[%emt 0:02:50]} 15. Rfc1 {[%emt 0:00:46]} Nb6 {[%emt 0:01:25]} 16. a4 {[%emt 0:05:22]} bxa4 {[%emt 0:16:41]} 17. Nxa4 {[%emt 0:00:17]} Nbd7 {[%emt 0:01:30]} 18. Nd4 {[%emt 0:11:10]} Rfc8 {[%emt 0:02:08]} 19. Nc6 {[%emt 0:03:44]} Bxh2+ {[%emt 0:06:22]} 20. Kh1 {[%emt 0:16:41]} Rxc6 {[%emt 0:16:31]} 21. Rxc6 {[%emt 0:00:07]} Ne4 {[%emt 0:06:07]} 22. dxe4 {[%emt 0:01:24]} Qh4 {[%emt 0:00:12]} 23. Bf3 {[%emt 0:00:54]} Ne5 {[%emt 0:07:18]} 24. Bxe5 {[%emt 0:02:02]} Bxe5+ {[%emt 0:00:33]} 25. Kg1 {[%emt 0:00:22]} Qh2+ {[%emt 0:01:01]} 26. Kf1 {[%emt 0:00:29]} Bxa1 {[%emt 0:04:31]} 27. exd5 {[%emt 0:00:34]} exd5 {[%emt 0:00:40]} 28. Qxd5 {[%emt 0:03:40]} Rb8 {[%emt 0:02:35]} 29. Nc5 {[%emt 0:07:33]} Qh1+ {[%emt 0:04:33]} 30. Ke2 {[%emt 0:00:17]} Bc3 {[%emt 0:00:34]} 31. Bh5 {[%emt 0:01:41]} Bc2 {[%emt 0:01:38]} 32. Bxf7+ {[%emt 0:01:28]} Kh8 {[%emt 0:00:07]} 33. Nd7 {[%emt 0:07:24]} Qe1+ {[%emt 0:01:19]} 34. Kf3 {[%emt 0:00:04]} Rd8 {[%emt 0:00:21]} 35. Kg3 {[%emt 0:01:32]} Ba4 {[%emt 0:00:44]} 36. Qa5 {[%emt 0:01:37]} Rf8 {[%emt 0:00:39]} 37. Nxf8 {[%emt 0:02:19]} Bxc6 {[%emt 0:00:11]} 38. Ng6+ {[%emt 0:00:16]} Kh7 {[%emt 0:00:10]} 39. Qf5 {[%emt 0:00:18]} 1-0